bitfinex/quotes_BTCUSD_20251024
["timestamp","ask_amount","ask_price","bid_price","bid_amount"]
[1761318726661,0.18819224,110380.0,110370.0,0.02021459]
[1761318726871,0.18819224,110380.0,110370.0,0.00209373]
[1761318727103,0.18819224,110380.0,110370.0,0.20142325]
[1761318727304,0.18819224,110380.0,110370.0,0.18330239]
[1761318727867,0.18819224,110380.0,110370.0,0.00209373]
[1761318728269,0.18819224,110380.0,110370.0,0.20142325]
[1761318728476,0.18819224,110380.0,110370.0,0.18330239]
[1761318730661,0.18819224,110380.0,110370.0,0.00209373]
[1761318732740,0.18819224,110380.0,110370.0,0.18330239]
[1761318733084,0.007,110380.0,110370.0,0.2731214]
[1761318734875,0.007,110380.0,110370.0,0.6131214]
[1761318735091,0.007,110380.0,110370.0,1.09369645]
[1761318735300,0.007,110380.0,110370.0,1.12987873]
[1761318735510,0.03255968,110420.0,110410.0,0.18114301]
[1761318735715,0.08174161,110430.0,110420.0,0.1811266]
[1761318735948,0.03290209,110430.0,110420.0,0.27094561]
[1761318736358,0.03290209,110430.0,110420.0,0.75152066]
[1761318736359,0.00034241,110430.0,110420.0,0.75152066]
[1761318736572,0.00034241,110430.0,110420.0,0.78770294]
[1761318736991,0.00534241,110430.0,110420.0,0.12700129]
[1761318737217,0.00534241,110430.0,110420.0,0.10893167]
[1761318737446,0.00534241,110430.0,110420.0,0.29005827]
[1761318737677,0.00534241,110430.0,110420.0,0.27194561]
[1761318737881,0.00734241,110430.0,110420.0,0.27194561]
[1761318738295,0.00534241,110430.0,110420.0,0.27194561]
[1761318738497,0.00034241,110430.0,110420.0,0.27094561]
[1761318738704,0.00134241,110430.0,110420.0,0.28594561]
[1761318739137,0.00134241,110430.0,110420.0,0.32212789]
[1761318740443,0.00134241,110430.0,110420.0,0.80270294]
[1761318743532,0.03255968,110470.0,110440.0,0.1810938]
[1761318743769,3.02712864,110500.0,110480.0,0.18102824]
[1761318743980,0.06956281,110570.0,110540.0,0.00999999]
[1761318744203,0.00472922,110570.0,110560.0,1.72822962]
[1761318744415,0.01725924,110590.0,110580.0,0.18086453]
[1761318744630,0.01725924,110590.0,110580.0,1.12744087]
[1761318744863,0.01725924,110590.0,110580.0,0.64686582]
[1761318745072,0.01725924,110590.0,110580.0,1.13744086]
[1761318745300,0.01725924,110590.0,110580.0,0.65686581]
[1761318745511,0.01725924,110590.0,110580.0,0.64686582]
[1761318746210,0.02370906,110620.0,110580.0,0.64686582]
[1761318746211,8e-05,110620.0,110590.0,0.0090424]
[1761318746410,8e-05,110620.0,110610.0,0.08981901]
[1761318746411,0.00014677,110620.0,110610.0,0.08981901]
[1761318746620,0.00014677,110620.0,110610.0,0.10635466]
[1761318746834,0.00014677,110620.0,110610.0,0.28717013]
[1761318747270,0.00014677,110620.0,110610.0,0.01653565]
[1761318747551,0.00014677,110620.0,110580.0,0.20886453]
[1761318747765,0.34,110610.0,110590.0,0.27066651]
[1761318747959,0.21235884,110620.0,110590.0,0.27066651]
[1761318748173,0.18984049,110610.0,110580.0,0.20486413]
[1761318748389,0.19890468,110600.0,110570.0,0.18088027]
[1761318748600,0.19889899,110600.0,110570.0,0.10883203]
[1761318748818,0.00902445,110590.0,110580.0,0.001]
[1761318749036,0.18086453,110580.0,110570.0,0.02405171]
[1761318749263,0.27970958,110590.0,110560.0,0.20466137]
[1761318749479,0.18987454,110600.0,110560.0,0.29448098]
[1761318749698,0.26052788,110620.0,110570.0,0.2887857]
[1761318749921,0.001,110600.0,110580.0,0.18086359]
[1761318750135,0.341,110600.0,110580.0,0.2706826]
[1761318750351,0.00547047,110590.0,110580.0,0.27082981]
[1761318750976,0.00547047,110590.0,110580.0,0.00014677]
[1761318751184,0.52083306,110600.0,110580.0,0.07033178]
[1761318751416,0.52083306,110600.0,110590.0,0.0474778]
[1761318751852,0.34,110600.0,110590.0,0.0474778]
[1761318752062,0.52083182,110600.0,110590.0,0.0474778]
[1761318752755,0.18087049,110580.0,110570.0,0.0632638]
[1761318752980,0.18101674,110580.0,110570.0,0.0632638]
[1761318753202,0.1808867,110570.0,110550.0,0.08143115]
[1761318753460,0.27974975,110570.0,110540.0,0.08143115]
[1761318753669,0.1899424,110560.0,110530.0,0.2622982]
[1761318754088,0.23355574,110560.0,110530.0,0.26237721]
[1761318754352,0.23355574,110560.0,110530.0,0.08143115]
[1761318754353,0.52091424,110550.0,110530.0,0.08143115]
[1761318754611,0.18091424,110550.0,110540.0,0.002]
[1761318755291,0.18091424,110550.0,110530.0,0.18094513]
[1761318755512,0.18091424,110550.0,110530.0,0.18594513]
[1761318755721,0.18091424,110550.0,110530.0,0.18594578]
[1761318755945,0.18091424,110550.0,110540.0,0.003]
[1761318756664,0.18091424,110550.0,110530.0,0.18594578]
[1761318756665,0.18091424,110550.0,110530.0,0.18094578]
[1761318756866,0.37621144,110570.0,110530.0,0.27576479]
[1761318757006,0.54804828,110570.0,110560.0,0.03309432]
[1761318757417,0.52088088,110570.0,110560.0,0.03309432]
[1761318758003,0.00014625,110580.0,110560.0,0.18230259]
[1761318758200,0.18003682,110590.0,110570.0,0.18088073]
[1761318758415,0.00034162,110600.0,110580.0,0.03168364]
[1761318758635,0.00034162,110600.0,110590.0,0.21252045]
[1761318758907,0.00034162,110600.0,110590.0,0.18084817]
[1761318759470,0.00034162,110600.0,110590.0,0.27066718]
[1761318759671,0.00034162,110600.0,110590.0,0.18084817]
[1761318759837,0.00034162,110600.0,110580.0,0.23878315]
[1761318760183,0.00034162,110600.0,110590.0,0.18084817]
[1761318760400,0.18117382,110600.0,110580.0,0.32860216]
[1761318760598,0.18117382,110600.0,110590.0,0.006]
[1761318760802,0.18117382,110600.0,110590.0,0.03566884]
[1761318761013,0.18117382,110600.0,110590.0,0.054669]
[1761318761453,0.00034162,110600.0,110590.0,0.03547211]
[1761318761576,0.06806174,110610.0,110590.0,0.21632028]
[1761318761775,0.18985835,110610.0,110600.0,0.11400362]
[1761318761976,0.18985835,110610.0,110600.0,0.14947573]
[1761318762477,0.18985835,110610.0,110600.0,0.13300378]
[1761318763134,0.18985835,110610.0,110600.0,0.01900016]
[1761318763328,0.18985835,110610.0,110600.0,0.02100016]
[1761318763751,0.18985835,110610.0,110600.0,0.08418447]
[1761318763982,0.18985835,110610.0,110600.0,0.08818447]
[1761318764641,0.11657319,110610.0,110600.0,0.08818447]
[1761318764852,0.11657319,110610.0,110600.0,0.02500016]
[1761318766310,0.11657319,110610.0,110600.0,0.08818447]
[1761318766520,0.06771579,110610.0,110600.0,0.08818447]
[1761318766740,0.06771579,110610.0,110590.0,0.06318431]
[1761318766949,0.18083182,110600.0,110590.0,0.06318431]
[1761318768022,0.18083182,110600.0,110590.0,0.06718431]
[1761318768434,0.18083182,110600.0,110590.0,0.06318431]
[1761318768850,0.00034158,110610.0,110590.0,0.24403248]
[1761318769053,0.18115738,110610.0,110590.0,0.24403248]
[1761318769470,0.00034158,110610.0,110600.0,0.24401613]
[1761318769672,0.00034158,110610.0,110600.0,0.41105613]
[1761318769870,0.18115705,110610.0,110600.0,0.23022431]
[1761318770510,0.21826439,110610.0,110600.0,0.06318431]
[1761318770719,0.21826439,110610.0,110600.0,0.003]
[1761318770921,0.18115705,110610.0,110600.0,0.003]
[1761318771122,0.77797606,110610.0,110600.0,0.003]
[1761318771508,0.81415834,110610.0,110600.0,0.003]
[1761318772700,0.81415834,110610.0,110600.0,0.0505991]
[1761318772905,0.18083182,110600.0,110590.0,0.06318431]
[1761318773329,0.18083182,110600.0,110570.0,0.42873543]
[1761318773330,0.18086453,110580.0,110570.0,0.08089527]
[1761318773536,0.08314142,110580.0,110570.0,0.08089527]
[1761318773738,0.08314142,110580.0,110570.0,0.0018944]
[1761318774162,0.08314142,110580.0,110570.0,0.18277528]
[1761318774374,0.08314142,110580.0,110570.0,0.0018944]
[1761318774584,0.18086453,110580.0,110570.0,0.0018944]
[1761318775607,0.18086453,110580.0,110570.0,0.0028944]
[1761318775852,0.18086453,110580.0,110570.0,0.0018944]
[1761318776629,0.18086453,110580.0,110570.0,0.0058944]
[1761318777086,0.18086453,110580.0,110570.0,0.0018944]
[1761318777427,0.18086453,110580.0,110570.0,0.0048944]
[1761318778475,0.18086453,110580.0,110570.0,0.18577528]
[1761318778876,0.18086453,110580.0,110570.0,0.20485135]
[1761318779098,0.41536189,110590.0,110570.0,0.20485135]
[1761318779406,0.06778483,110590.0,110580.0,0.2126577]
[1761318779617,0.18084817,110590.0,110580.0,0.01907607]
[1761318780022,0.18987585,110600.0,110580.0,0.1999406]
[1761318780280,0.19019782,110610.0,110600.0,0.18083182]
[1761318780416,0.19019782,110610.0,110600.0,0.23169858]
[1761318780417,0.00034158,110610.0,110600.0,0.23169858]
[1761318780831,0.00034158,110610.0,110600.0,0.32151759]
[1761318781060,0.00034158,110610.0,110600.0,0.3476069]
[1761318783409,0.00034158,110610.0,110600.0,0.3516069]
[1761318785753,0.00034158,110610.0,110600.0,1.4636367]
[1761318786167,0.00034158,110610.0,110600.0,1.49981898]
[1761318786378,0.00108,110630.0,110620.0,0.18079913]
[1761318786621,0.00108,110630.0,110620.0,0.48786523]
[1761318786826,0.00108,110630.0,110620.0,0.52404751]
[1761318787260,0.00108,110630.0,110620.0,1.26430985]
[1761318787478,0.00108,110630.0,110620.0,0.52404751]
[1761318787702,0.00122641,110630.0,110620.0,0.52404751]
[1761318787918,0.00122641,110630.0,110620.0,0.48778523]
[1761318788126,0.00122641,110630.0,110620.0,0.32850523]
[1761318788328,0.00122641,110630.0,110620.0,0.89766523]
[1761318788962,0.00122641,110630.0,110620.0,0.89066523]
[1761318789166,0.50122641,110630.0,110620.0,0.89766523]
[1761318789569,0.50122641,110630.0,110620.0,0.89266523]
[1761318789937,0.50122641,110630.0,110620.0,0.89766523]
[1761318790134,0.50122641,110630.0,110620.0,0.93384751]
[1761318790364,0.50122641,110630.0,110620.0,0.92684751]
[1761318790737,0.50122641,110630.0,110620.0,1.67410985]
[1761318790922,0.50122641,110630.0,110620.0,1.66710985]
[1761318791413,0.50122641,110630.0,110620.0,1.64229883]
[1761318791550,0.50122641,110630.0,110620.0,0.85885421]
[1761318791734,0.50122641,110630.0,110620.0,0.89077499]
[1761318791955,0.50190941,110630.0,110620.0,0.89777499]
[1761318792151,0.45307998,110630.0,110620.0,0.92938863]
[1761318792352,0.45307998,110630.0,110620.0,0.92918863]
[1761318792581,0.45307998,110630.0,110620.0,0.58410863]
[1761318792779,0.45307998,110630.0,110620.0,0.57341975]
[1761318793033,0.45307998,110630.0,110620.0,0.291621]
[1761318793347,0.45307998,110630.0,110620.0,0.40477546]
[1761318793667,0.63386276,110630.0,110620.0,0.40977546]
[1761318793903,0.45307998,110630.0,110620.0,0.3778752]
[1761318794108,0.45307998,110630.0,110620.0,0.3708752]
[1761318794310,0.45307998,110630.0,110620.0,0.3658752]
[1761318794564,0.45307998,110630.0,110620.0,0.3768752]
[1761318794861,0.45307998,110630.0,110620.0,0.3698752]
[1761318795180,0.45307998,110630.0,110620.0,0.46169421]
[1761318795385,0.45307998,110630.0,110620.0,1.23385681]
[1761318795591,0.45307998,110630.0,110620.0,1.28170235]
[1761318795816,0.45307998,110630.0,110620.0,0.53741939]
[1761318796036,0.45307998,110630.0,110620.0,0.57360167]
[1761318796236,0.45307998,110630.0,110620.0,1.65786401]
[1761318796676,0.25847771,110630.0,110620.0,0.86975613]
[1761318796916,0.25847771,110630.0,110620.0,0.83357385]
[1761318797156,0.25847771,110630.0,110620.0,0.83341385]
[1761318797396,0.25847771,110630.0,110620.0,0.02507607]
[1761318797653,0.25847771,110630.0,110620.0,0.3717152]
[1761318797894,0.43926049,110630.0,110620.0,0.3717152]
[1761318798613,0.25847771,110630.0,110620.0,0.3717152]
[1761318798857,0.43926049,110630.0,110620.0,0.35263913]
[1761318800000,0.25847771,110630.0,110620.0,0.35263913]
[1761318800686,0.43926049,110630.0,110620.0,0.35263913]
[1761318802464,0.25847771,110630.0,110620.0,0.35263913]
[1761318803816,0.43926049,110630.0,110620.0,0.35263913]
[1761318804507,0.25847771,110630.0,110620.0,0.35263913]
[1761318804740,0.43926049,110630.0,110620.0,0.17184]
[1761318804961,0.43926049,110630.0,110620.0,0.35263913]
[1761318805409,0.25847771,110630.0,110620.0,1.01688048]
[1761318805879,0.25847771,110630.0,110620.0,0.27661814]
[1761318807034,0.25847771,110630.0,110620.0,1.01688048]
[1761318807767,0.25847771,110630.0,110620.0,0.27661814]
[1761318808259,0.25847771,110630.0,110620.0,1.01688048]
[1761318808490,0.25847771,110630.0,110620.0,0.27661814]
[1761318808752,0.25847771,110630.0,110620.0,1.35688048]
[1761318809446,0.25847771,110630.0,110620.0,1.38085427]
[1761318809664,0.25847771,110630.0,110620.0,0.61661814]
[1761318811493,0.25847771,110630.0,110620.0,0.27661814]
[1761318812183,0.25847771,110630.0,110620.0,0.18679913]
[1761318812637,0.42359771,110630.0,110620.0,0.18679913]
[1761318812870,0.25847771,110630.0,110620.0,0.27661814]
[1761318813446,0.25847771,110630.0,110620.0,0.006]
[1761318813447,0.60438049,110630.0,110620.0,0.006]
[1761318813671,0.60438049,110630.0,110620.0,0.18679913]
[1761318814097,0.60438049,110630.0,110620.0,0.006]
[1761318815155,0.43926049,110630.0,110620.0,0.006]
[1761318815368,0.66262049,110630.0,110620.0,0.002]
[1761318815574,0.66258049,110630.0,110620.0,0.002]
[1761318815776,0.60470049,110630.0,110620.0,0.006]
[1761318816041,0.66254049,110630.0,110620.0,0.006]
[1761318816248,0.18079913,110620.0,110610.0,0.18081547]
[1761318816701,0.34619913,110620.0,110600.0,0.18987341]
[1761318816922,0.34619913,110620.0,110610.0,0.18081547]
[1761318817624,0.34619913,110620.0,110600.0,0.27969242]
[1761318817852,0.34619913,110620.0,110600.0,0.18083097]
[1761318818273,0.18081547,110610.0,110600.0,0.18083097]
[1761318818480,0.18081547,110610.0,110590.0,0.18084817]
[1761318818695,0.16532,110600.0,110590.0,0.18084817]
[1761318818972,0.18084817,110590.0,110580.0,0.00140499]
[1761318819215,0.23872817,110590.0,110580.0,0.00140499]
[1761318820270,0.23872817,110590.0,110580.0,0.0015514]
[1761318820666,0.32854718,110590.0,110580.0,0.0015514]
[1761318821828,0.32854718,110590.0,110580.0,0.0045514]
[1761318822069,0.37943351,110590.0,110580.0,0.0045514]
[1761318823014,0.32854718,110590.0,110580.0,0.0045514]
[1761318824892,0.66854718,110590.0,110580.0,0.0045514]
[1761318825365,0.77229732,110590.0,110580.0,0.0045514]
[1761318826683,2.77229732,110590.0,110580.0,0.0045514]
[1761318826897,2.78229731,110590.0,110580.0,0.0045514]
[1761318827114,2.87211632,110590.0,110580.0,0.0045514]
[1761318827712,0.18091361,110550.0,110530.0,0.24580313]
[1761318827974,0.18091361,110550.0,110530.0,0.21441273]
[1761318827975,0.16508,110540.0,110530.0,0.21441273]
[1761318829339,0.16508,110540.0,110530.0,0.22241273]
[1761318829554,0.16508,110540.0,110530.0,0.21441273]
[1761318829774,0.16508,110540.0,110530.0,0.22241273]
[1761318830004,0.16508,110540.0,110530.0,0.22741273]
[1761318830486,0.18091361,110550.0,110540.0,0.18092998]
[1761318830685,0.34587361,110550.0,110540.0,0.18092998]
[1761318831540,0.18092998,110540.0,110530.0,0.18943558]
[1761318831763,0.34587361,110550.0,110530.0,0.18943558]
[1761318832501,0.34587361,110550.0,110530.0,0.18143558]
[1761318832698,0.34587361,110550.0,110540.0,0.007]
[1761318832899,0.34587361,110550.0,110540.0,0.005]
[1761318833131,0.34587361,110550.0,110540.0,0.18592998]
[1761318833345,0.34575361,110550.0,110530.0,0.18943558]
[1761318833565,0.18092998,110540.0,110530.0,0.18943558]
[1761318833780,0.18092998,110540.0,110530.0,0.19443558]
[1761318833971,0.18092998,110540.0,110530.0,0.18643558]
[1761318834277,0.18092998,110540.0,110530.0,0.18143558]
[1761318835685,0.18092998,110540.0,110530.0,0.00048924]
[1761318835887,0.18092998,110540.0,110530.0,0.00848924]
[1761318836100,0.18092998,110540.0,110530.0,0.01348924]
[1761318838111,0.27074899,110540.0,110530.0,0.01348924]
[1761318839923,0.28062152,110540.0,110530.0,0.01348924]
[1761318840144,0.27074899,110540.0,110530.0,0.01519861]
[1761318840348,0.18092998,110540.0,110530.0,0.01519861]
[1761318844847,0.18092998,110540.0,110530.0,0.01019861]
[1761318845061,0.18092998,110540.0,110530.0,0.00719861]
[1761318845476,0.18092998,110540.0,110530.0,0.00919861]
[1761318845641,0.61074899,110540.0,110530.0,0.00919861]
[1761318846203,0.61074899,110540.0,110530.0,0.00419861]
[1761318846433,0.700568,110540.0,110530.0,0.00419861]
[1761318846641,0.79467028,110540.0,110530.0,0.00719861]
[1761318847921,0.79467028,110540.0,110530.0,0.00419861]
[1761318848165,0.79467028,110540.0,110530.0,0.00519861]
[1761318848391,0.79467028,110540.0,110530.0,0.00719861]
[1761318848624,0.79467028,110540.0,110530.0,0.00219861]
[1761318848843,0.70485127,110540.0,110530.0,0.00219861]
[1761318849077,0.70585127,110540.0,110530.0,0.00519861]
[1761318849746,0.83394899,110540.0,110530.0,0.00519861]
[1761318849986,0.77602899,110540.0,110530.0,0.00519861]
[1761318851456,0.61174899,110540.0,110530.0,0.00519861]
[1761318851679,0.85630026,110540.0,110530.0,0.00519861]
[1761318852086,0.93710259,110540.0,110530.0,0.00519861]
[1761318852285,0.88862337,110540.0,110530.0,0.00519861]
[1761318852695,0.8083921,110540.0,110530.0,0.00519861]
[1761318852975,0.77606899,110540.0,110530.0,0.00519861]
[1761318853179,0.77594899,110540.0,110530.0,0.00519861]
[1761318856326,0.77594899,110540.0,110530.0,0.18614495]
[1761318856327,0.18192998,110540.0,110530.0,0.18614495]
[1761318856545,0.18192998,110540.0,110530.0,0.00519861]
[1761318857171,0.18192998,110540.0,110530.0,0.18614495]
[1761318859724,0.001,110540.0,110530.0,0.18614495]
[1761318859939,0.17802491,110560.0,110540.0,0.18092963]
[1761318860156,0.18091361,110550.0,110540.0,0.18092963]
[1761318861259,0.18091361,110550.0,110530.0,0.23935558]
[1761318861461,0.18091361,110550.0,110530.0,0.32917459]
[1761318861669,0.18191361,110550.0,110540.0,0.00136738]
[1761318862306,0.18191361,110550.0,110540.0,0.18229736]
[1761318863126,0.18191361,110550.0,110540.0,0.18529736]
[1761318863763,0.18191361,110550.0,110540.0,0.34933736]
[1761318863910,0.001,110550.0,110540.0,0.34933736]
[1761318864120,0.18191361,110550.0,110540.0,0.34933736]
[1761318864528,0.18191361,110550.0,110540.0,0.16840738]
[1761318865133,0.18191361,110550.0,110540.0,0.00436738]
[1761318865134,0.21881195,110550.0,110540.0,0.00436738]
[1761318865578,0.47247096,110550.0,110540.0,0.00436738]
[1761318865820,0.81247096,110550.0,110540.0,0.00436738]
[1761318868495,2.88097635,110550.0,110540.0,0.00436738]
[1761318869189,2.89097634,110550.0,110540.0,0.00436738]
[1761318869626,2.85479406,110550.0,110540.0,0.00436738]
[1761318869855,2.89097634,110550.0,110540.0,0.00436738]
[1761318870080,2.93945556,110550.0,110540.0,0.00436738]
[1761318873343,2.90713245,110550.0,110540.0,0.00436738]
[1761318876139,2.69639412,110550.0,110540.0,0.00436738]
[1761318876351,2.91410649,110550.0,110540.0,0.00436738]
[1761318876560,0.86562727,110550.0,110540.0,0.00436738]
[1761318876995,0.80770727,110550.0,110540.0,0.00436738]
[1761318878361,0.64418727,110550.0,110540.0,0.00436738]
[1761318878581,0.46766727,110550.0,110540.0,0.00436738]
[1761318880468,0.21436826,110550.0,110540.0,0.00436738]
[1761318880675,0.18191361,110550.0,110540.0,0.00436738]
[1761318881474,0.18191361,110550.0,110540.0,0.18529736]
[1761318881674,0.18191361,110550.0,110540.0,0.00436738]
[1761318881959,0.22690534,110550.0,110540.0,0.00436738]
[1761318883012,0.852619,110550.0,110540.0,0.00436738]
[1761318883168,0.86864357,110550.0,110540.0,0.00436738]
[1761318884015,2.86864357,110550.0,110540.0,0.00436738]
[1761318885631,0.86864357,110550.0,110540.0,0.00436738]
[1761318885844,0.82365184,110550.0,110540.0,0.00436738]
[1761318887281,0.21442933,110550.0,110540.0,0.09418639]
[1761318887490,0.21442933,110550.0,110540.0,0.00436738]
[1761318887868,0.18191361,110550.0,110540.0,0.00436738]
[1761318889668,0.18191361,110550.0,110540.0,0.18529736]
[1761318892166,0.001,110550.0,110540.0,0.27511637]
[1761318892372,0.001,110550.0,110540.0,0.61511637]
[1761318893003,0.18090166,110560.0,110550.0,0.18091361]
[1761318893253,0.18091361,110550.0,110530.0,0.19047738]
[1761318893440,0.18091361,110550.0,110540.0,0.22976]
[1761318893978,0.18091361,110550.0,110540.0,0.23512738]
[1761318894207,0.18091361,110550.0,110540.0,0.23112738]
[1761318894641,0.18091361,110550.0,110540.0,0.22712738]
[1761318895929,0.18091361,110550.0,110540.0,0.22612738]
[1761318896149,0.18091361,110550.0,110540.0,0.23012738]
[1761318896365,0.18091361,110550.0,110540.0,0.00836738]
[1761318896589,0.18091361,110550.0,110540.0,0.17216738]
[1761318897764,0.18091361,110550.0,110540.0,0.16916738]
[1761318897978,0.18091361,110550.0,110540.0,0.00836738]
[1761318898204,0.22034671,110550.0,110540.0,0.00836738]
[1761318898427,0.43445262,110550.0,110540.0,0.00836738]
[1761318898664,0.46696834,110550.0,110540.0,0.00836738]
[1761318898887,0.46696834,110550.0,110540.0,0.00136738]
[1761318899317,0.80696834,110550.0,110540.0,0.00636738]
[1761318899522,0.80696834,110550.0,110540.0,0.00436738]
[1761318899523,0.94526657,110550.0,110540.0,0.00436738]
[1761318900598,0.89678735,110550.0,110540.0,0.00436738]
[1761318900862,2.93296963,110550.0,110530.0,0.00048924]
[1761318901139,0.67943863,110540.0,110530.0,0.00048924]
[1761318901368,0.76925764,110540.0,110530.0,0.00048924]
[1761318901601,2.82773685,110540.0,110530.0,1e-08]
[1761318901809,2.79522949,110540.0,110530.0,1e-08]
[1761318902955,0.18099547,110500.0,110490.0,0.0004]
[1761318903197,0.1814825,110500.0,110490.0,0.0004]
[1761318903635,0.00048703,110500.0,110490.0,0.18141185]
[1761318903915,0.1814825,110500.0,110490.0,0.27123086]
[1761318904353,0.00048703,110500.0,110490.0,0.27123086]
[1761318904803,0.00048703,110500.0,110490.0,0.27423086]
[1761318905535,0.00048703,110500.0,110490.0,0.27623086]
[1761318905992,0.1814825,110500.0,110490.0,0.27623086]
[1761318906477,0.00048703,110500.0,110490.0,0.27623086]
[1761318907621,0.1814825,110500.0,110490.0,0.27623086]
[1761318907825,0.00048703,110500.0,110490.0,0.27623086]
[1761318908044,0.00048703,110500.0,110490.0,0.27794115]
[1761318908893,0.1814825,110500.0,110490.0,0.0969293]
[1761318909122,0.21772871,110500.0,110490.0,0.00711029]
[1761318910040,0.1814825,110500.0,110490.0,0.00711029]
[1761318910468,0.1814825,110500.0,110490.0,0.00411029]
[1761318910907,0.1814825,110500.0,110490.0,0.00611029]
[1761318911368,0.1814825,110500.0,110490.0,0.00411029]
[1761318913553,0.1814825,110500.0,110490.0,0.34864214]
[1761318917967,0.1814825,110500.0,110490.0,0.16763029]
[1761318918920,0.21772871,110500.0,110490.0,0.16763029]
[1761318919170,0.1814825,110500.0,110490.0,0.16763029]
[1761318919593,0.1814825,110500.0,110490.0,0.00411029]
[1761318919834,0.1814825,110500.0,110490.0,0.16751029]
[1761318920048,0.1814825,110500.0,110490.0,0.00411029]
[1761318920762,0.1814825,110500.0,110490.0,0.18512214]
[1761318920921,0.1814825,110500.0,110490.0,0.00411029]
[1761318924505,0.00048703,110500.0,110490.0,0.18512214]
[1761318924711,0.1814825,110500.0,110490.0,0.20322332]
[1761318924938,0.1814825,110500.0,110490.0,0.18512214]
[1761318925527,0.1814825,110500.0,110490.0,0.00411029]
[1761318926023,0.1814825,110500.0,110490.0,0.16727029]
[1761318929194,0.43438151,110500.0,110490.0,0.00411029]
[1761318931526,0.3445625,110500.0,110490.0,0.00411029]
[1761318931758,0.1814825,110500.0,110490.0,0.00411029]
[1761318932003,0.00048703,110500.0,110490.0,0.77790115]
[1761318932221,0.00048703,110500.0,110490.0,0.5968893]
[1761318932421,0.00048703,110500.0,110490.0,0.77790115]
[1761318932659,0.00048703,110500.0,110490.0,0.5968893]
[1761318932866,0.00048703,110500.0,110490.0,0.77790115]
[1761318941409,0.00048703,110500.0,110490.0,1.55553551]
[1761318945898,0.00048703,110500.0,110490.0,0.81408343]
[1761318946511,0.00048703,110500.0,110490.0,0.61494115]
[1761318946709,0.00048703,110500.0,110490.0,0.83546115]
[1761318946926,0.00048703,110500.0,110490.0,1.57691323]
[1761318947527,0.00048703,110500.0,110490.0,0.83546115]
[1761318947862,0.00048703,110500.0,110490.0,1.57691323]
[1761318956282,0.00048703,110500.0,110490.0,0.83546115]
[1761318956440,0.00048703,110500.0,110490.0,1.57691323]
[1761318960069,0.00048703,110500.0,110490.0,0.4339293]
[1761318960275,0.00048703,110500.0,110490.0,0.49506115]
[1761318961728,0.1814825,110500.0,110490.0,0.49506115]
[1761318962905,0.00048703,110500.0,110490.0,0.49506115]
[1761318963253,0.00048703,110500.0,110490.0,0.00411029]
[1761318963254,0.1814825,110500.0,110490.0,0.00411029]
[1761318963511,0.1814825,110500.0,110490.0,0.16619029]
[1761318963856,0.1814825,110500.0,110490.0,0.00411029]
[1761318964263,0.1814825,110500.0,110490.0,0.16619029]
[1761318965874,0.1814825,110500.0,110490.0,0.00411029]
[1761318968183,0.18099547,110500.0,110490.0,0.00411029]
[1761318970338,0.27081448,110500.0,110490.0,0.00411029]
[1761318972455,0.43281448,110500.0,110490.0,0.00411029]
[1761318972632,0.43281448,110500.0,110490.0,0.00211029]
[1761318973175,0.43281448,110500.0,110490.0,0.00411029]
[1761318978509,0.18099547,110500.0,110490.0,0.42614187]
[1761318978981,0.18099547,110500.0,110490.0,0.00411029]
[1761318979196,0.18099547,110500.0,110490.0,0.16595029]
[1761318979347,0.18099547,110500.0,110490.0,0.34696214]
[1761318979542,0.18099547,110500.0,110490.0,0.16595029]
[1761318980216,0.18099547,110500.0,110490.0,0.34696214]
[1761318982874,0.18099547,110500.0,110490.0,0.16595029]
[1761318983496,0.18099547,110500.0,110490.0,0.00411029]
[1761318984125,0.18099547,110500.0,110490.0,0.16591029]
[1761318984959,0.18099547,110500.0,110490.0,0.34692214]
[1761318986667,0.18099547,110500.0,110490.0,0.16591029]
[1761318989232,0.18099547,110500.0,110490.0,0.34692214]
[1761318989855,0.18099547,110500.0,110490.0,0.16591029]
[1761318992287,0.21546296,110500.0,110490.0,0.00411029]
[1761318992488,0.64528197,110500.0,110490.0,0.00411029]
[1761318992879,0.67246559,110500.0,110490.0,0.00411029]
[1761318993078,0.83426559,110500.0,110490.0,0.00411029]
[1761318996251,0.7997981,110500.0,110490.0,0.00411029]
[1761318996736,2.89390038,110500.0,110490.0,0.00411029]
[1761318996951,2.92640419,110500.0,110490.0,0.00411029]
[1761318997380,2.89390038,110500.0,110490.0,0.00411029]
[1761318997588,2.97488341,110500.0,110490.0,0.00411029]
[1761318998666,3.06470242,110500.0,110490.0,0.00411029]
[1761318999496,0.92640419,110500.0,110490.0,0.00411029]
[1761319000031,2.97488341,110500.0,110490.0,0.00411029]
[1761319001076,2.97488341,110500.0,110490.0,0.00211029]
[1761319001934,0.18104462,110470.0,110460.0,0.10264]
[1761319002863,0.18104462,110470.0,110460.0,0.0004]
[1761319003315,0.18104462,110470.0,110460.0,0.0034]
[1761319003518,0.61086363,110470.0,110460.0,0.0034]
[1761319004236,0.61086363,110470.0,110460.0,0.0064]
[1761319004776,0.64763118,110470.0,110460.0,0.0034]
[1761319005240,0.64763118,110470.0,110460.0,0.0064]
[1761319005625,0.73745019,110470.0,110460.0,0.0004]
[1761319005804,0.73745019,110470.0,110460.0,0.0034]
[1761319006347,0.73745019,110470.0,110460.0,0.0004]
[1761319006767,0.64763118,110470.0,110460.0,0.0024]
[1761319006966,0.62144044,110470.0,110460.0,0.0024]
[1761319007538,0.62144044,110470.0,110460.0,0.00342669]
[1761319009893,0.60144044,110470.0,110460.0,0.00342669]
[1761319010259,0.62863118,110470.0,110460.0,0.00342669]
[1761319011554,0.18923536,110470.0,110460.0,0.00342669]
[1761319011766,0.18204462,110470.0,110460.0,0.00342669]
[1761319012128,0.18204462,110470.0,110460.0,0.1844877]
[1761319012334,0.18204462,110470.0,110460.0,0.43614671]
[1761319013201,0.18204462,110470.0,110460.0,0.2550857]
[1761319013485,0.18204462,110470.0,110460.0,0.00342669]
[1761319014052,0.21835337,110470.0,110460.0,0.00342669]
[1761319014261,0.18204462,110470.0,110460.0,0.00342669]
[1761319017329,0.18104462,110470.0,110460.0,0.00342669]
[1761319021965,0.64704591,110470.0,110460.0,0.00342669]
[1761319022395,0.67423855,110470.0,110460.0,0.00342669]
[1761319026382,0.64704591,110470.0,110460.0,0.00342669]
[1761319026581,0.73686492,110470.0,110460.0,0.00342669]
[1761319027369,2.64704591,110470.0,110460.0,0.00342669]
[1761319027695,2.70500591,110470.0,110450.0,0.0004]
[1761319027943,0.8088623,110460.0,110450.0,0.0004]
[1761319028148,0.84136611,110460.0,110450.0,1e-08]
[1761319028322,2.99970717,110460.0,110450.0,1e-08]
[1761319028530,0.1811102,110430.0,110420.0,0.0004]
[1761319028738,0.3429102,110430.0,110420.0,0.0004]
[1761319029101,0.34304225,110430.0,110420.0,0.0004]
[1761319029730,0.43286126,110430.0,110420.0,0.0004]
[1761319030542,0.43286126,110430.0,110420.0,0.0064]
[1761319030747,0.43286126,110430.0,110420.0,0.0034]
[1761319030913,0.43286126,110430.0,110420.0,0.0004]
[1761319031406,0.43286126,110430.0,110420.0,0.0024]